[Event "European Online Club-ch-F 2021"]
[Site "Online"]
[Date "2021.03.27"]
[Round "2.16"]
[White "Zhigalko, Andrey"]
[Black "Gleizer, Adar"]
[Result "1-0"]
[ECO "C90"]
[WhiteElo "2517"]
[BlackElo "1833"]
[Annotator "ChessBase"]
[PlyCount "143"]
[EventDate "2021.03.27"]
[EventType "team-tourn"]
[EventCountry "NET"]
[SourceTitle "playchess.com"]
[Source "ChessBase"]
[SourceQuality "1"]
[TimeControl "900+5"]

1. e4 {[%emt 0:00:00]} e5 {[%emt 0:00:04]} 2. Nf3 {[%emt 0:00:02]} Nc6 {[%emt 0:00:08]} 3. Bb5 {[%emt 0:00:02]} a6 {[%emt 0:00:03]} 4. Ba4 {[%emt 0:00:06]} Nf6 {[%emt 0:00:02]} 5. O-O {[%emt 0:00:03]} Be7 {[%emt 0:00:03]} 6. Re1 {[%emt 0:00:01]} b5 {[%emt 0:00:03]} 7. Bb3 {[%emt 0:00:03]} O-O {[%emt 0:00:04]} 8. d3 {[%emt 0:00:09]} d6 {[%emt 0:00:10]} 9. c3 {[%emt 0:00:03]} Nb8 {[%emt 0:00:12]} 10. Nbd2 {[%emt 0:00:52]} Bb7 {[%emt 0:00:11]} 11. Nf1 {[%emt 0:00:05]} Nbd7 {[%emt 0:00:02]} 12. Ng3 {[%emt 0:00:05]} Nc5 {[%emt 0:00:06]} 13. Bc2 {[%emt 0:00:02]} Re8 {[%emt 0:00:06]} 14. d4 {[%emt 0:00:07]} Ncd7 {[%emt 0:00:12]} 15. a4 {[%emt 0:00:35]} Bf8 {[%emt 0:00:10]} 16. Bd3 {[%emt 0:00:28]} c6 {[%emt 0:00:37]} 17. h3 {[%emt 0:00:07]} g6 {[%emt 0:00:08]} 18. Bg5 {[%emt 0:00:20]} h6 {[%emt 0:00:03]} 19. Be3 {[%emt 0:00:01]} Qc7 {[%emt 0:00:31]} 20. Qd2 {[%emt 0:00:06]} h5 {[%emt 0:00:54]} 21. Bh6 {[%emt 0:00:30]} Be7 {[%emt 0:00:26]} 22. Nf5 {[%emt 0:03:20]} Bd8 {[%emt 0:00:39]} 23. Rad1 {[%emt 0:01:37]} Nh7 {[%emt 0:00:44]} 24. Ng3 {[%emt 0:01:21]} Bf6 {[%emt 0:01:00]} 25. Bf1 {[%emt 0:01:05]} Nb6 {[%emt 0:00:25]} 26. axb5 {[%emt 0:00:34]} axb5 {[%emt 0:00:02]} 27. Qc2 {[%emt 0:00:29]} Ra2 {[%emt 0:00:34]} 28. Ra1 {[%emt 0:00:23]} Rea8 {[%emt 0:00:02]} 29. Rxa2 {[%emt 0:00:02]} Rxa2 {[%emt 0:00:02]} 30. Qb3 {[%emt 0:00:28]} Ra4 {[%emt 0:00:13]} 31. Be3 {[%emt 0:00:29]} Nf8 {[%emt 0:00:39]} 32. Rd1 {[%emt 0:01:12]} Nfd7 {[%emt 0:00:28]} 33. Qc2 {[%emt 0:00:44]} Ra2 {[%emt 0:01:00]} 34. Qb1 {[%emt 0:00:18]} Ra5 {[%emt 0:00:26]} 35. Nd2 {[%emt 0:00:17]} Ra4 {[%emt 0:01:09]} 36. b3 {[%emt 0:00:27]} Ra8 {[%emt 0:00:25]} 37. f4 {[%emt 0:00:06]} b4 {[%emt 0:00:28]} 38. Nf3 {[%emt 0:00:43]} bxc3 {[%emt 0:01:10]} 39. Qc2 {[%emt 0:00:09]} Ba6 {[%emt 0:00:04]} 40. Qxc3 {[%emt 0:00:15]} Bxf1 {[%emt 0:00:03]} 41. Rxf1 {[%emt 0:00:00]} c5 {[%emt 0:00:39]} 42. dxe5 {[%emt 0:00:04]} dxe5 {[%emt 0:00:12]} 43. f5 {[%emt 0:00:17]} c4 {[%emt 0:00:44]} 44. fxg6 {[%emt 0:00:10]} fxg6 {[%emt 0:00:01]} 45. Ng5 {[%emt 0:00:07]} Ra3 {[%emt 0:00:34]} 46. Rc1 {[%emt 0:00:14]} Qd8 {[%emt 0:00:18]} 47. Nf3 {[%emt 0:00:07]} Rxb3 {[%emt 0:00:06]} 48. Qd2 {[%emt 0:00:05]} Rd3 {[%emt 0:00:07]} 49. Qe2 {[%emt 0:00:07]} Qc7 {[%emt 0:00:26]} 50. Nf1 {[%emt 0:00:04]} Nc5 {[%emt 0:00:05]} 51. Bf2 {[%emt 0:00:05]} Qd6 {[%emt 0:00:05]} 52. Kh2 {[%emt 0:00:05]} Bg7 {[%emt 0:00:12]} 53. N1d2 {[%emt 0:00:04]} Nb3 {[%emt 0:01:49]} 54. Nxb3 {[%emt 0:00:02]} Rxb3 {[%emt 0:00:03]} 55. Bxb6 {[%emt 0:00:06]} Qxb6 {[%emt 0:00:02]} 56. Qxc4+ {[%emt 0:00:03]} Kh7 {[%emt 0:00:01]} 57. Ng5+ {[%emt 0:00:09]} Kh6 {[%emt 0:00:07]} 58. Nf7+ {[%emt 0:00:04]} Kh7 {[%emt 0:00:02]} 59. Rf1 {[%emt 0:00:09]} Qe3 {[%emt 0:00:09]} 60. Qe6 {[%emt 0:00:07]} Qg3+ {[%emt 0:00:06]} 61. Kh1 {[%emt 0:00:04]} Rb2 {[%emt 0:00:02]} 62. Rg1 {[%emt 0:00:02]} Rf2 {[%emt 0:00:06]} 63. Qe7 {[%emt 0:00:05]} Qf4 {[%emt 0:00:21]} 64. Ng5+ {[%emt 0:00:05]} Kh6 {[%emt 0:00:02]} 65. Ne6 {[%emt 0:00:04]} Qf6 {[%emt 0:00:02]} 66. Qd7 {[%emt 0:00:04]} Re2 {[%emt 0:00:08]} 67. Qd5 {[%emt 0:00:07]} Re3 {[%emt 0:00:06]} 68. Rd1 {[%emt 0:00:05]} Qh4 {[%emt 0:00:05]} 69. Nxg7 {[%emt 0:00:04]} Kxg7 {[%emt 0:00:03]} 70. Qxe5+ {[%emt 0:00:03]} Kh6 {[%emt 0:00:10]} 71. Qh8+ {[%emt 0:00:02]} Kg5 {[%emt 0:00:04]} 72. Qd8+ {[%emt 0:00:01]} 1-0

[Event "European Online Club-ch-F 2021"]
[Site "Online"]
[Date "2021.03.27"]
[Round "2.18"]
[White "Moiseenko, Alexander"]
[Black "Van Wely, Loek"]
[Result "0-1"]
[ECO "E21"]
[WhiteElo "2620"]
[BlackElo "2620"]
[Annotator "ChessBase"]
[PlyCount "80"]
[EventDate "2021.03.27"]
[EventType "team-tourn"]
[EventCountry "NET"]
[SourceTitle "playchess.com"]
[Source "ChessBase"]
[SourceQuality "1"]
[TimeControl "900+5"]

1. d4 {[%emt 0:00:00]} Nf6 {[%emt 0:00:05]} 2. c4 {[%emt 0:00:03]} e6 {[%emt 0:00:02]} 3. Nc3 {[%emt 0:00:02]} Bb4 {[%emt 0:00:03]} 4. Nf3 {[%emt 0:00:02]} O-O {[%emt 0:00:08]} 5. Bg5 {[%emt 0:00:03]} c5 {[%emt 0:00:58]} 6. Rc1 {[%emt 0:00:04]} cxd4 {[%emt 0:01:19]} 7. Nxd4 {[%emt 0:00:04]} b6 {[%emt 0:00:37]} 8. e3 {[%emt 0:01:14]} Bb7 {[%emt 0:00:03]} 9. Be2 {[%emt 0:00:02]} h6 {[%emt 0:03:41]} 10. Bh4 {[%emt 0:01:03]} Nc6 {[%emt 0:00:08]} 11. O-O {[%emt 0:00:24]} Ne5 {[%emt 0:00:14]} 12. Ndb5 {[%emt 0:01:16]} Qb8 {[%emt 0:02:37]} 13. f4 {[%emt 0:03:45]} Ng6 {[%emt 0:00:04]} 14. Bxf6 {[%emt 0:01:49]} gxf6 {[%emt 0:00:00]} 15. Bf3 {[%emt 0:00:41]} Bc5 {[%emt 0:01:12]} 16. Nd4 {[%emt 0:00:23]} f5 {[%emt 0:00:46]} 17. Kh1 {[%emt 0:00:16]} Kh7 {[%emt 0:00:14]} 18. Bxb7 {[%emt 0:01:13]} Qxb7 {[%emt 0:00:03]} 19. Qh5 {[%emt 0:00:04]} Rg8 {[%emt 0:00:16]} 20. Rc2 {[%emt 0:00:04]} Rac8 {[%emt 0:00:24]} 21. b3 {[%emt 0:00:37]} a6 {[%emt 0:00:06]} 22. Rf3 {[%emt 0:00:09]} b5 {[%emt 0:00:16]} 23. cxb5 {[%emt 0:00:54]} Bxd4 {[%emt 0:00:21]} 24. exd4 {[%emt 0:00:04]} axb5 {[%emt 0:00:02]} 25. Rh3 {[%emt 0:00:47]} Rh8 {[%emt 0:00:08]} 26. b4 {[%emt 0:01:32]} Rc4 {[%emt 0:00:18]} 27. d5 {[%emt 0:00:27]} Rxf4 {[%emt 0:00:20]} 28. Rc1 {[%emt 0:00:10]} Qc7 {[%emt 0:00:38]} 29. g3 {[%emt 0:00:07]} Rc4 {[%emt 0:00:09]} 30. g4 {[%emt 0:00:04]} fxg4 {[%emt 0:00:15]} 31. Rd3 {[%emt 0:00:02]} Qf4 {[%emt 0:00:19]} 32. Rcd1 {[%emt 0:00:02]} Rxb4 {[%emt 0:00:17]} 33. dxe6 {[%emt 0:00:02]} dxe6 {[%emt 0:00:04]} 34. Qc5 {[%emt 0:00:13]} Rb2 {[%emt 0:00:10]} 35. Qg1 {[%emt 0:00:04]} Ne5 {[%emt 0:00:12]} 36. Rg3 {[%emt 0:00:08]} Nf3 {[%emt 0:00:09]} 37. Rf1 {[%emt 0:00:05]} Rc8 {[%emt 0:00:21]} 38. Rfxf3 {[%emt 0:00:03]} gxf3 {[%emt 0:00:04]} 39. Rg7+ {[%emt 0:00:07]} Kh8 {[%emt 0:00:02]} 40. Rxf7 {[%emt 0:00:04]} Qxf7 {[%emt 0:00:10]} 0-1

[Event "European Online Club-ch-F 2021"]
[Site "Online"]
[Date "2021.03.27"]
[Round "2.19"]
[White "Hamdouchi, Hicham"]
[Black "Smirin, Ilia"]
[Result "1/2-1/2"]
[ECO "B80"]
[WhiteElo "2561"]
[BlackElo "2614"]
[Annotator "ChessBase"]
[PlyCount "59"]
[EventDate "2021.03.27"]
[EventType "team-tourn"]
[EventCountry "NET"]
[SourceTitle "playchess.com"]
[Source "ChessBase"]
[SourceQuality "1"]
[TimeControl "900+5"]

1. e4 {[%emt 0:00:00]} c5 {[%emt 0:00:04]} 2. Nc3 {[%emt 0:00:08]} e6 {[%emt 0:00:04]} 3. Nf3 {[%emt 0:00:02]} a6 {[%emt 0:00:06]} 4. g3 {[%emt 0:00:08]} Nc6 {[%emt 0:00:08]} 5. Bg2 {[%emt 0:00:04]} d6 {[%emt 0:00:08]} 6. d4 {[%emt 0:00:08]} cxd4 {[%emt 0:00:02]} 7. Nxd4 {[%emt 0:00:01]} Bd7 {[%emt 0:00:03]} 8. O-O {[%emt 0:00:21]} Nf6 {[%emt 0:00:12]} 9. Re1 {[%emt 0:00:54]} Be7 {[%emt 0:00:06]} 10. a4 {[%emt 0:00:12]} O-O {[%emt 0:00:54]} 11. Nxc6 {[%emt 0:00:06]} bxc6 {[%emt 0:00:45]} 12. e5 {[%emt 0:01:31]} dxe5 {[%emt 0:00:06]} 13. Rxe5 {[%emt 0:00:02]} Nd5 {[%emt 0:00:20]} 14. Re2 {[%emt 0:00:39]} Qc8 {[%emt 0:02:46]} 15. Ne4 {[%emt 0:00:53]} c5 {[%emt 0:01:13]} 16. c4 {[%emt 0:01:11]} Nb4 {[%emt 0:00:04]} 17. Nd6 {[%emt 0:00:37]} Bxd6 {[%emt 0:00:52]} 18. Qxd6 {[%emt 0:00:06]} Bc6 {[%emt 0:00:25]} 19. Be3 {[%emt 0:02:11]} Bxg2 {[%emt 0:00:21]} 20. Kxg2 {[%emt 0:00:03]} Qb7+ {[%emt 0:01:01]} 21. f3 {[%emt 0:00:03]} Rac8 {[%emt 0:01:28]} 22. Rd1 {[%emt 0:00:09]} Rc6 {[%emt 0:00:11]} 23. Qe5 {[%emt 0:02:11]} Qc8 {[%emt 0:00:37]} 24. Red2 {[%emt 0:00:18]} Rc7 {[%emt 0:00:23]} 25. Qd6 {[%emt 0:00:25]} f6 {[%emt 0:00:22]} 26. Qb6 {[%emt 0:01:08]} Rc6 {[%emt 0:01:27]} 27. Qa7 {[%emt 0:00:11]} Rc7 {[%emt 0:00:11]} 28. Qb6 {[%emt 0:00:03]} Rc6 {[%emt 0:00:03]} 29. Qa7 {[%emt 0:00:52]} Rc7 {[%emt 0:00:08]} 30. Qb6 {[%emt 0:00:02]} 1/2-1/2

[Event "European Online Club-ch-F 2021"]
[Site "Online"]
[Date "2021.03.27"]
[Round "2.20"]
[White "Fridman, Daniel"]
[Black "Delorme, Axel"]
[Result "1/2-1/2"]
[ECO "D02"]
[WhiteElo "2601"]
[BlackElo "2480"]
[Annotator "ChessBase"]
[PlyCount "78"]
[EventDate "2021.03.27"]
[EventType "team-tourn"]
[EventCountry "NET"]
[SourceTitle "playchess.com"]
[Source "ChessBase"]
[SourceQuality "1"]
[TimeControl "900+5"]

1. d4 {[%emt 0:00:00]} Nf6 {[%emt 0:00:08]} 2. Nf3 {[%emt 0:00:04]} e6 {[%emt 0:00:02]} 3. g3 {[%emt 0:00:06]} b5 {[%emt 0:00:31]} 4. Bg2 {[%emt 0:00:03]} d5 {[%emt 0:00:03]} 5. O-O {[%emt 0:00:03]} Nbd7 {[%emt 0:00:15]} 6. a4 {[%emt 0:00:03]} b4 {[%emt 0:00:06]} 7. c4 {[%emt 0:00:01]} bxc3 {[%emt 0:00:03]} 8. Nxc3 {[%emt 0:00:02]} Be7 {[%emt 0:01:12]} 9. Bf4 {[%emt 0:00:09]} c6 {[%emt 0:00:10]} 10. a5 {[%emt 0:00:17]} Ba6 {[%emt 0:00:31]} 11. Qa4 {[%emt 0:00:07]} Rc8 {[%emt 0:00:21]} 12. b4 {[%emt 0:00:50]} O-O {[%emt 0:00:10]} 13. Rfc1 {[%emt 0:00:15]} Ne4 {[%emt 0:02:34]} 14. Nxe4 {[%emt 0:02:12]} dxe4 {[%emt 0:00:03]} 15. Ne5 {[%emt 0:00:02]} Nxe5 {[%emt 0:00:25]} 16. dxe5 {[%emt 0:00:00]} Bb5 {[%emt 0:01:55]} 17. Qb3 {[%emt 0:01:51]} Bxe2 {[%emt 0:02:22]} 18. Bxe4 {[%emt 0:01:04]} Bb5 {[%emt 0:00:13]} 19. Be3 {[%emt 0:00:34]} Rc7 {[%emt 0:00:47]} 20. Rd1 {[%emt 0:02:01]} Qc8 {[%emt 0:00:22]} 21. Bc5 {[%emt 0:00:15]} Bxc5 {[%emt 0:00:23]} 22. bxc5 {[%emt 0:00:00]} Qa6 {[%emt 0:00:08]} 23. Rd6 {[%emt 0:00:14]} Bc4 {[%emt 0:00:13]} 24. Qc2 {[%emt 0:00:09]} h6 {[%emt 0:00:02]} 25. Rad1 {[%emt 0:01:34]} Bd5 {[%emt 0:00:22]} 26. Bxd5 {[%emt 0:00:05]} exd5 {[%emt 0:00:03]} 27. R1xd5 {[%emt 0:00:06]} Qxa5 {[%emt 0:00:02]} 28. Rd1 {[%emt 0:00:03]} Re8 {[%emt 0:00:11]} 29. f4 {[%emt 0:00:42]} Qa3 {[%emt 0:00:46]} 30. R1d3 {[%emt 0:00:30]} Qa1+ {[%emt 0:00:22]} 31. Kg2 {[%emt 0:00:02]} Rb7 {[%emt 0:00:08]} 32. Rd8 {[%emt 0:01:16]} Rb8 {[%emt 0:00:07]} 33. Rxe8+ {[%emt 0:00:03]} Rxe8 {[%emt 0:00:02]} 34. Qb3 {[%emt 0:00:21]} Qe1 {[%emt 0:00:20]} 35. Re3 {[%emt 0:01:47]} Qd2+ {[%emt 0:00:08]} 36. Kh3 {[%emt 0:00:02]} Qd7+ {[%emt 0:00:08]} 37. Kg2 {[%emt 0:00:06]} Qd2+ {[%emt 0:00:02]} 38. Kh3 {[%emt 0:00:01]} Qd7+ {[%emt 0:00:02]} 39. Kg2 {[%emt 0:00:17]} Qd2+ {[%emt 0:00:02]} 1/2-1/2

[Event "European Online Club-ch-F 2021"]
[Site "Online"]
[Date "2021.03.27"]
[Round "3.1"]
[White "Kovalenko, Igor"]
[Black "Pulkkinen, Kari"]
[Result "1-0"]
[ECO "A31"]
[WhiteElo "2643"]
[BlackElo "2256"]
[Annotator "ChessBase"]
[PlyCount "209"]
[EventDate "2021.03.27"]
[EventType "team-tourn"]
[EventCountry "NET"]
[SourceTitle "playchess.com"]
[Source "ChessBase"]
[SourceQuality "1"]
[TimeControl "900+5"]

1. d4 {[%emt 0:00:00]} Nf6 {[%emt 0:00:06]} 2. c4 {[%emt 0:00:06]} c5 {[%emt 0:00:02]} 3. Nf3 {[%emt 0:00:02]} cxd4 {[%emt 0:00:02]} 4. Nxd4 {[%emt 0:00:02]} e5 {[%emt 0:00:03]} 5. Nb5 {[%emt 0:00:01]} d5 {[%emt 0:00:06]} 6. cxd5 {[%emt 0:00:02]} Bc5 {[%emt 0:00:05]} 7. N5c3 {[%emt 0:00:02]} O-O {[%emt 0:00:08]} 8. g3 {[%emt 0:00:04]} e4 {[%emt 0:00:10]} 9. Bg2 {[%emt 0:00:32]} Bf5 {[%emt 0:00:10]} 10. O-O {[%emt 0:00:29]} Nbd7 {[%emt 0:00:11]} 11. a3 {[%emt 0:01:16]} Nb6 {[%emt 0:00:58]} 12. b4 {[%emt 0:00:14]} Be7 {[%emt 0:00:04]} 13. Ra2 {[%emt 0:00:16]} Rc8 {[%emt 0:00:20]} 14. Be3 {[%emt 0:01:18]} Nfxd5 {[%emt 0:01:11]} 15. Bxb6 {[%emt 0:00:55]} Nxb6 {[%emt 0:00:06]} 16. Bxe4 {[%emt 0:00:04]} Bxe4 {[%emt 0:00:07]} 17. Qxd8 {[%emt 0:00:11]} Rfxd8 {[%emt 0:00:04]} 18. Nxe4 {[%emt 0:00:02]} Nc4 {[%emt 0:00:08]} 19. Ned2 {[%emt 0:00:32]} a5 {[%emt 0:00:26]} 20. bxa5 {[%emt 0:00:24]} Nxa5 {[%emt 0:00:06]} 21. Rb2 {[%emt 0:00:22]} Rd7 {[%emt 0:00:12]} 22. Kg2 {[%emt 0:00:07]} Bf6 {[%emt 0:00:10]} 23. Rb5 {[%emt 0:00:04]} Nc4 {[%emt 0:00:09]} 24. Nb3 {[%emt 0:00:30]} g6 {[%emt 0:00:44]} 25. a4 {[%emt 0:01:03]} b6 {[%emt 0:00:32]} 26. Rc1 {[%emt 0:00:53]} Rdc7 {[%emt 0:00:26]} 27. Kh3 {[%emt 0:00:16]} h5 {[%emt 0:00:16]} 28. Rc2 {[%emt 0:00:35]} Kg7 {[%emt 0:00:11]} 29. N1d2 {[%emt 0:00:22]} Nxd2 {[%emt 0:00:08]} 30. Rxd2 {[%emt 0:00:07]} Ra8 {[%emt 0:00:14]} 31. Ra2 {[%emt 0:00:06]} Rc4 {[%emt 0:00:09]} 32. Rxb6 {[%emt 0:00:02]} Rcxa4 {[%emt 0:00:03]} 33. Rxa4 {[%emt 0:00:02]} Rxa4 {[%emt 0:00:02]} 34. Rb8 {[%emt 0:00:16]} Ra2 {[%emt 0:00:12]} 35. Re8 {[%emt 0:00:02]} Rc2 {[%emt 0:00:11]} 36. Kg2 {[%emt 0:00:09]} Bb2 {[%emt 0:01:22]} 37. h3 {[%emt 0:00:06]} Bf6 {[%emt 0:00:04]} 38. Re4 {[%emt 0:00:08]} Bb2 {[%emt 0:00:09]} 39. Na5 {[%emt 0:00:26]} Ba1 {[%emt 0:00:51]} 40. e3 {[%emt 0:00:16]} Bb2 {[%emt 0:00:25]} 41. Ra4 {[%emt 0:00:25]} Bf6 {[%emt 0:00:32]} 42. Nc4 {[%emt 0:00:45]} Bc3 {[%emt 0:00:18]} 43. Nd6 {[%emt 0:00:05]} Be1 {[%emt 0:00:09]} 44. Ne4 {[%emt 0:00:03]} Rb2 {[%emt 0:00:21]} 45. Ra7 {[%emt 0:00:20]} Kf8 {[%emt 0:01:15]} 46. Kf1 {[%emt 0:00:47]} Bb4 {[%emt 0:00:07]} 47. Ng5 {[%emt 0:00:16]} Be7 {[%emt 0:00:05]} 48. Nf3 {[%emt 0:00:02]} Bf6 {[%emt 0:00:05]} 49. Kg2 {[%emt 0:00:07]} Kg7 {[%emt 0:00:08]} 50. Rc7 {[%emt 0:00:04]} Kf8 {[%emt 0:00:08]} 51. Rd7 {[%emt 0:00:12]} Ke8 {[%emt 0:00:06]} 52. Rd3 {[%emt 0:00:02]} Ke7 {[%emt 0:00:07]} 53. Nd2 {[%emt 0:00:03]} Ke6 {[%emt 0:00:18]} 54. Ne4 {[%emt 0:00:06]} Be7 {[%emt 0:00:04]} 55. Rd1 {[%emt 0:00:46]} f5 {[%emt 0:00:31]} 56. Nc3 {[%emt 0:00:03]} g5 {[%emt 0:00:08]} 57. Nd5 {[%emt 0:00:07]} Bd6 {[%emt 0:00:13]} 58. Nf6 {[%emt 0:01:52]} Bxg3 {[%emt 0:00:27]} 59. Kxg3 {[%emt 0:00:04]} Kxf6 {[%emt 0:00:02]} 60. Rd6+ {[%emt 0:00:02]} Kg7 {[%emt 0:00:07]} 61. h4 {[%emt 0:00:19]} gxh4+ {[%emt 0:00:07]} 62. Kf3 {[%emt 0:00:11]} h3 {[%emt 0:00:06]} 63. Rd4 {[%emt 0:00:15]} Kg6 {[%emt 0:00:08]} 64. Rh4 {[%emt 0:00:02]} Kg5 {[%emt 0:00:05]} 65. Rxh3 {[%emt 0:00:01]} Rb4 {[%emt 0:00:02]} 66. Rh1 {[%emt 0:00:16]} Rc4 {[%emt 0:00:16]} 67. Ra1 {[%emt 0:00:12]} Rb4 {[%emt 0:00:14]} 68. Ra8 {[%emt 0:00:02]} Rc4 {[%emt 0:00:08]} 69. Rg8+ {[%emt 0:00:02]} Kf6 {[%emt 0:00:03]} 70. Rf8+ {[%emt 0:00:02]} Kg5 {[%emt 0:00:04]} 71. Kg3 {[%emt 0:00:01]} Rg4+ {[%emt 0:00:06]} 72. Kh3 {[%emt 0:00:03]} Rh4+ {[%emt 0:00:02]} 73. Kg2 {[%emt 0:00:04]} Rg4+ {[%emt 0:00:04]} 74. Kh3 {[%emt 0:00:26]} Rc4 {[%emt 0:00:09]} 75. f4+ {[%emt 0:00:07]} Kg6 {[%emt 0:00:06]} 76. Kh4 {[%emt 0:00:05]} Rc3 {[%emt 0:00:12]} 77. Re8 {[%emt 0:00:28]} Rc1 {[%emt 0:00:03]} 78. Re6+ {[%emt 0:00:02]} Kf7 {[%emt 0:00:04]} 79. Ra6 {[%emt 0:00:01]} Rg1 {[%emt 0:00:06]} 80. Kxh5 {[%emt 0:00:02]} Rg3 {[%emt 0:00:04]} 81. Rb6 {[%emt 0:00:04]} Ke7 {[%emt 0:00:05]} 82. Rg6 {[%emt 0:00:03]} Rxe3 {[%emt 0:00:03]} 83. Kg5 {[%emt 0:00:02]} Kf7 {[%emt 0:00:10]} 84. Ra6 {[%emt 0:00:05]} Re7 {[%emt 0:00:08]} 85. Kxf5 {[%emt 0:00:10]} Rb7 {[%emt 0:00:04]} 86. Kg5 {[%emt 0:00:01]} Rd7 {[%emt 0:00:21]} 87. f5 {[%emt 0:00:03]} Kg7 {[%emt 0:00:12]} 88. Rg6+ {[%emt 0:00:03]} Kf7 {[%emt 0:00:04]} 89. Rh6 {[%emt 0:00:01]} Rd2 {[%emt 0:00:23]} 90. Rh7+ {[%emt 0:00:03]} Kf8 {[%emt 0:00:09]} 91. Kg6 {[%emt 0:00:02]} Kg8 {[%emt 0:00:12]} 92. Rg7+ {[%emt 0:00:02]} Kf8 {[%emt 0:00:02]} 93. Ra7 {[%emt 0:00:02]} Ke8 {[%emt 0:00:21]} 94. Ra8+ {[%emt 0:00:04]} Ke7 {[%emt 0:00:05]} 95. f6+ {[%emt 0:00:01]} Ke6 {[%emt 0:00:05]} 96. Re8+ {[%emt 0:00:07]} Kd7 {[%emt 0:00:02]} 97. Kf7 {[%emt 0:00:02]} Rh2 {[%emt 0:00:12]} 98. Re1 {[%emt 0:00:05]} Rd2 {[%emt 0:00:19]} 99. Kf8 {[%emt 0:00:03]} Rg2 {[%emt 0:00:06]} 100. f7 {[%emt 0:00:02]} Rg3 {[%emt 0:00:04]} 101. Rd1+ {[%emt 0:00:03]} Kc6 {[%emt 0:00:04]} 102. Rd4 {[%emt 0:00:04]} Kc5 {[%emt 0:00:03]} 103. Re4 {[%emt 0:00:18]} Kd6 {[%emt 0:00:06]} 104. Ke8 {[%emt 0:00:05]} Re3 {[%emt 0:00:05]} 105. Rxe3 {[%emt 0:00:03]} 1-0

[Event "European Online Club-ch-F 2021"]
[Site "Online"]
[Date "2021.03.27"]
[Round "3.2"]
[White "Prieur, Eetu"]
[Black "Moiseenko, Alexander"]
[Result "0-1"]
[ECO "B22"]
[WhiteElo "2172"]
[BlackElo "2620"]
[Annotator "ChessBase"]
[PlyCount "104"]
[EventDate "2021.03.27"]
[EventType "team-tourn"]
[EventCountry "NET"]
[SourceTitle "playchess.com"]
[Source "ChessBase"]
[SourceQuality "1"]
[TimeControl "900+5"]

1. e4 {[%emt 0:00:00]} c5 {[%emt 0:00:03]} 2. d4 {[%emt 0:00:03]} cxd4 {[%emt 0:00:25]} 3. c3 {[%emt 0:00:04]} Nf6 {[%emt 0:00:21]} 4. e5 {[%emt 0:00:05]} Nd5 {[%emt 0:00:02]} 5. Nf3 {[%emt 0:00:04]} d6 {[%emt 0:00:16]} 6. exd6 {[%emt 0:00:26]} e6 {[%emt 0:00:53]} 7. Nxd4 {[%emt 0:00:42]} Bxd6 {[%emt 0:00:14]} 8. g3 {[%emt 0:00:08]} O-O {[%emt 0:00:29]} 9. Bg2 {[%emt 0:00:08]} Nc6 {[%emt 0:00:01]} 10. O-O {[%emt 0:01:02]} Nxd4 {[%emt 0:00:16]} 11. Qxd4 {[%emt 0:00:06]} Qc7 {[%emt 0:00:17]} 12. Nd2 {[%emt 0:00:32]} Rd8 {[%emt 0:00:12]} 13. Qh4 {[%emt 0:00:26]} Be7 {[%emt 0:00:10]} 14. Qh5 {[%emt 0:00:39]} Bd7 {[%emt 0:01:30]} 15. Nf3 {[%emt 0:00:44]} Nf6 {[%emt 0:00:09]} 16. Qh4 {[%emt 0:00:48]} Bc6 {[%emt 0:00:19]} 17. Bf4 {[%emt 0:00:16]} Qb6 {[%emt 0:00:09]} 18. b3 {[%emt 0:01:51]} h6 {[%emt 0:01:23]} 19. Be5 {[%emt 0:00:27]} Qa5 {[%emt 0:00:58]} 20. b4 {[%emt 0:00:36]} Qa3 {[%emt 0:01:02]} 21. Rfe1 {[%emt 0:01:33]} a5 {[%emt 0:00:54]} 22. b5 {[%emt 0:00:49]} Nd7 {[%emt 0:01:25]} 23. Qf4 {[%emt 0:00:49]} Bxf3 {[%emt 0:00:07]} 24. Bxf3 {[%emt 0:00:13]} Nxe5 {[%emt 0:00:02]} 25. Qxe5 {[%emt 0:00:03]} Bf6 {[%emt 0:00:12]} 26. Qe3 {[%emt 0:00:14]} Qxc3 {[%emt 0:01:00]} 27. Rac1 {[%emt 0:01:04]} Qxe3 {[%emt 0:00:08]} 28. fxe3 {[%emt 0:00:03]} Rd7 {[%emt 0:00:13]} 29. Red1 {[%emt 0:00:15]} Rad8 {[%emt 0:00:10]} 30. Rxd7 {[%emt 0:00:07]} Rxd7 {[%emt 0:00:01]} 31. Rc8+ {[%emt 0:00:08]} Kh7 {[%emt 0:00:09]} 32. Kf1 {[%emt 0:00:19]} b6 {[%emt 0:01:58]} 33. Rc6 {[%emt 0:00:10]} Rd2 {[%emt 0:00:55]} 34. Rxb6 {[%emt 0:00:50]} Bg5 {[%emt 0:00:24]} 35. Ra6 {[%emt 0:00:32]} Bxe3 {[%emt 0:00:19]} 36. Be4+ {[%emt 0:00:03]} f5 {[%emt 0:00:02]} 37. Bc6 {[%emt 0:00:08]} Rxa2 {[%emt 0:00:25]} 38. b6 {[%emt 0:00:04]} Rf2+ {[%emt 0:00:07]} 39. Ke1 {[%emt 0:00:03]} Rxh2 {[%emt 0:00:01]} 40. b7 {[%emt 0:00:13]} Bf2+ {[%emt 0:00:02]} 41. Kf1 {[%emt 0:00:07]} Bxg3 {[%emt 0:00:03]} 42. Bg2 {[%emt 0:00:33]} Rh4 {[%emt 0:00:10]} 43. Rxa5 {[%emt 0:00:24]} Rf4+ {[%emt 0:00:02]} 44. Kg1 {[%emt 0:00:06]} Rb4 {[%emt 0:00:03]} 45. Kf1 {[%emt 0:00:23]} Kg6 {[%emt 0:00:08]} 46. Ra3 {[%emt 0:00:11]} Bf4 {[%emt 0:00:21]} 47. Rf3 {[%emt 0:00:07]} Kg5 {[%emt 0:00:09]} 48. Rc3 {[%emt 0:00:04]} e5 {[%emt 0:00:10]} 49. Bd5 {[%emt 0:00:04]} e4 {[%emt 0:00:03]} 50. Ke2 {[%emt 0:00:10]} Rb2+ {[%emt 0:00:02]} 51. Kf1 {[%emt 0:00:03]} h5 {[%emt 0:00:03]} 52. Rc8 {[%emt 0:00:10]} h4 {[%emt 0:00:04]} 0-1

[Event "European Online Club-ch-F 2021"]
[Site "Online"]
[Date "2021.03.27"]
[Round "3.3"]
[White "Smirin, Ilia"]
[Black "Lammi, Jyri"]
[Result "1-0"]
[ECO "C41"]
[WhiteElo "2614"]
[BlackElo "2083"]
[Annotator "ChessBase"]
[PlyCount "59"]
[EventDate "2021.03.27"]
[EventType "team-tourn"]
[EventCountry "NET"]
[SourceTitle "playchess.com"]
[Source "ChessBase"]
[SourceQuality "1"]
[TimeControl "900+5"]

1. e4 {[%emt 0:00:00]} e5 {[%emt 0:00:21]} 2. Nf3 {[%emt 0:00:05]} d6 {[%emt 0:00:07]} 3. d4 {[%emt 0:00:04]} Nd7 {[%emt 0:00:03]} 4. Bc4 {[%emt 0:00:10]} c6 {[%emt 0:00:03]} 5. O-O {[%emt 0:00:21]} Be7 {[%emt 0:00:30]} 6. dxe5 {[%emt 0:00:20]} dxe5 {[%emt 0:00:03]} 7. Ng5 {[%emt 0:00:07]} Bxg5 {[%emt 0:00:34]} 8. Qh5 {[%emt 0:00:05]} Qe7 {[%emt 0:00:06]} 9. Qxg5 {[%emt 0:00:39]} Qxg5 {[%emt 0:01:31]} 10. Bxg5 {[%emt 0:00:04]} Ngf6 {[%emt 0:00:05]} 11. f3 {[%emt 0:00:15]} b5 {[%emt 0:00:08]} 12. Be2 {[%emt 0:00:06]} Nc5 {[%emt 0:00:23]} 13. Nd2 {[%emt 0:00:21]} Be6 {[%emt 0:00:29]} 14. c4 {[%emt 0:00:15]} b4 {[%emt 0:00:42]} 15. Nb3 {[%emt 0:00:14]} Na4 {[%emt 0:00:20]} 16. a3 {[%emt 0:00:42]} Nb6 {[%emt 0:03:15]} 17. Na5 {[%emt 0:00:31]} bxa3 {[%emt 0:00:26]} 18. Rxa3 {[%emt 0:00:05]} c5 {[%emt 0:00:19]} 19. b3 {[%emt 0:00:31]} Nfd7 {[%emt 0:00:31]} 20. Nc6 {[%emt 0:00:17]} f6 {[%emt 0:00:40]} 21. Be3 {[%emt 0:00:08]} Kf7 {[%emt 0:00:21]} 22. Nxa7 {[%emt 0:00:16]} Rhb8 {[%emt 0:01:25]} 23. Rfa1 {[%emt 0:00:15]} Rb7 {[%emt 0:00:11]} 24. Nb5 {[%emt 0:00:13]} Rxa3 {[%emt 0:00:09]} 25. Rxa3 {[%emt 0:00:02]} Ke7 {[%emt 0:00:05]} 26. Kf2 {[%emt 0:00:32]} h6 {[%emt 0:00:35]} 27. Ra6 {[%emt 0:00:12]} Bf7 {[%emt 0:00:08]} 28. Ke1 {[%emt 0:00:46]} Rb8 {[%emt 0:01:12]} 29. Kd2 {[%emt 0:00:13]} Ra8 {[%emt 0:00:06]} 30. Rxb6 {[%emt 0:00:43]} 1-0